bitfinex/quotes_ETHUSD_20240729
["timestamp","ask_amount","ask_price","bid_price","bid_amount"]
[1722223945268,2.4974,3354.6,3353.9,2.38527]
[1722223945545,2.38486,3354.5,3353.7,2.3854]
[1722223945778,3.434064,3354.5,3353.7,2.3854]
[1722223945954,2.38493,3354.4,3353.5,2.38554]
[1722223946160,4.99493,3354.4,3353.3,2.38569]
[1722223946481,2.38522,3354.0,3353.1,2.38583]
[1722223946702,2.38522,3354.0,3353.2,2.38577]
[1722223947261,2.3853,3353.9,3353.0,2.38588]
[1722223947469,4.99522,3354.0,3353.1,2.38584]
[1722223947680,4.99522,3354.0,3353.2,2.38573]
[1722223947878,2.38508,3354.2,3353.4,2.38562]
[1722223948199,2.38501,3354.3,3353.2,2.38575]
[1722223948429,2.38511,3354.2,3353.4,2.38562]
[1722223948897,5.61,3354.4,3353.2,0.90586051]
[1722223948898,5.61,3354.4,3353.6,2.38544]
[1722223949083,5.61,3354.4,3353.5,2.38555]
[1722223949393,7.99497,3354.4,3353.5,2.38555]
[1722223949599,5.61,3354.4,3353.5,2.38555]
[1722223949778,5.61,3354.4,3353.7,2.38537]
[1722223950795,3.0,3354.4,3353.5,0.32914105]
[1722223951001,2.4974,3354.6,3353.9,2.38527]
[1722223951202,2.4974,3354.6,3354.0,2.3852]
[1722223951372,2.3015,3355.1,3354.1,2.38509]
[1722223951709,4.68593,3355.1,3354.2,2.38501]
[1722223951909,4.68593,3355.1,3353.7,2.38538]
[1722223951910,2.3015,3355.1,3354.5,2.38479]
[1722223952114,0.85131068,3355.5,3354.5,0.238479]
[1722223952115,3.15281068,3355.5,3354.5,0.238479]
[1722223952279,3.15281068,3355.5,3354.5,2.38483]
[1722223952482,3.15281068,3355.5,3354.8,2.38463]
[1722223953027,3.15281068,3355.5,3354.9,2.38456]
[1722223953235,2.3015,3355.5,3354.9,2.38456]
[1722223953521,2.38426,3355.4,3354.5,2.38483]
[1722223953868,2.3015,3355.5,3354.9,2.38456]
[1722223954311,5.3015,3355.5,3355.0,2.38449]
[1722223954984,5.3015,3355.5,3354.9,2.38456]
[1722223955183,5.3015,3355.5,3355.0,2.38449]
[1722223955709,6.33105,3355.5,3354.8,2.38459]
[1722223956066,5.3015,3355.5,3354.9,2.38451]
[1722223956492,7.68564,3355.5,3354.7,2.3847]
[1722223956693,5.3015,3355.5,3354.8,2.38462]
[1722223956889,2.3015,3355.5,3355.0,2.38449]
[1722223957776,2.3015,3355.5,3355.1,2.38437]
[1722223957972,5.2616,3355.9,3354.9,2.38452]
[1722223958293,2.384,3355.7,3354.9,2.38452]
[1722223958492,6.310979,3355.9,3355.2,2.38434]
[1722223958669,6.310979,3355.9,3354.3,4.07920816]
[1722223958670,2.2616,3355.9,3355.6,2.38402]
[1722223958874,2.2534,3356.3,3355.7,2.38399]
[1722223959098,3.21642,3356.3,3355.9,2.38384]
[1722223959305,2.2534,3356.3,3355.7,2.38395]
[1722223959500,2.2534,3356.3,3355.4,4.07920816]
[1722223959701,2.38369,3356.2,3355.4,6.46341816]
[1722223959907,2.38369,3356.2,3355.4,4.07920816]
[1722223959908,2.38368,3356.2,3355.4,4.07920816]
[1722223960074,2.38386,3355.9,3355.4,4.07920816]
[1722223960274,2.622316,3355.8,3355.4,4.07920816]
[1722223960680,2.38401,3355.7,3355.4,4.07920816]
[1722223960985,2.38428,3355.4,3354.8,12.44]
[1722223961185,0.238386,3355.8,3354.7,4.07920816]
[1722223961479,2.277,3356.0,3355.3,2.38428]
[1722223961685,5.277,3356.0,3355.3,2.38428]
[1722223962080,5.277,3356.0,3355.1,2.3844]
[1722223962305,2.38394,3355.8,3354.9,2.38454]
[1722223962499,5.38386,3355.9,3355.1,2.38437]
[1722223962705,2.38393,3355.8,3355.0,2.38449]
[1722223963101,2.384,3355.7,3355.0,2.38449]
[1722223964098,2.384,3355.7,3354.8,2.38463]
[1722223964295,3.465087,3355.7,3354.9,2.38453]
[1722223964897,2.38416,3355.5,3354.7,4.07920816]
[1722223965097,2.38422,3355.4,3354.7,4.07920816]
[1722223965293,2.373,3355.4,3354.7,4.07920816]
[1722223965627,4.75725,3355.4,3354.7,4.07920816]
[1722223965803,4.75725,3355.4,3354.6,2.38477]
[1722223966631,2.38433,3355.3,3354.4,7.07920816]
[1722223966827,2.38433,3355.3,3354.5,3.33126482]
[1722223967827,4.75721,3355.4,3354.5,0.94642482]
[1722223968008,2.38443,3355.1,3354.4,7.07920816]
[1722223968335,2.38443,3355.1,3354.4,4.07920816]
[1722223968336,2.38464,3354.8,3354.4,4.07920816]
[1722223968834,2.4021,3354.9,3353.9,4.07920816]
[1722223968835,2.38472,3354.7,3353.9,4.07920816]
[1722223969131,2.38486,3354.5,3353.9,4.07920816]
[1722223969435,2.38472,3354.7,3353.9,4.07920816]
[1722223969436,2.38493,3354.4,3353.9,4.07920816]
[1722223969617,5.61,3354.7,3353.9,4.07920816]
[1722223969822,2.38478,3354.6,3353.9,6.46448816]
[1722223970034,7.99476,3354.7,3353.9,6.46448816]
[1722223970329,3.0,3354.7,3353.9,8.31170522]
[1722223970532,3.0,3354.7,3354.1,2.38513]
[1722223970733,5.38464,3354.8,3354.1,2.38513]
[1722223971030,2.3848,3354.6,3353.9,4.07920816]
[1722223971534,2.3848,3354.6,3353.9,6.46447816]
[1722223971736,3.0,3354.7,3354.0,2.38518]
[1722223972735,5.38471,3354.7,3354.0,2.38518]
[1722223973238,2.38485,3354.6,3353.9,4.07920816]
[1722223973933,2.38497,3354.4,3353.9,4.07920816]
[1722223974739,2.385,3354.3,3353.6,14.82549]
[1722223976603,9.02626444,3354.7,3353.6,14.82549]
[1722223976808,9.02626444,3354.7,3353.9,2.38528]
[1722223977022,2.38478,3354.6,3353.9,2.38528]
[1722223977444,2.38486,3354.5,3353.7,4.88956608]
[1722223977643,2.38494,3354.4,3353.6,14.82548]
[1722223978545,2.38501,3354.3,3353.6,14.82548]
[1722223979424,6.64155444,3354.7,3353.6,12.44]
[1722223979425,4.7459,3354.2,3353.6,12.44]
[1722223979810,2.3852,3354.1,3353.6,12.44]
[1722223980111,2.38526,3354.0,3353.6,12.44]
[1722223980310,2.38526,3354.0,3353.2,6.46497816]
[1722223980929,2.38528,3353.9,3353.2,6.46497816]
[1722223981643,2.38514,3354.1,3353.3,2.3857]
[1722223981945,2.38464,3354.8,3353.3,2.2593]
[1722223982149,2.4519,3354.8,3354.1,2.38511]
[1722223982642,2.4519,3354.8,3354.3,2.38495]
[1722223983030,2.4519,3354.8,3354.1,2.38511]
[1722223983352,2.61,3355.5,3354.2,2.38506]
[1722223983353,2.4519,3355.3,3354.2,2.38506]
[1722223983644,2.38469,3354.8,3354.0,2.38518]
[1722223983834,2.38479,3354.6,3353.8,2.38529]
[1722223984042,3.0,3355.0,3353.7,6.46455816]
[1722223984043,4.83662,3354.7,3353.7,6.46461816]
[1722223984215,2.4519,3354.7,3354.0,2.38515]
[1722223984642,2.38478,3354.6,3353.8,5.64298182]
[1722223984843,2.38478,3354.6,3353.8,3.25768182]
[1722223985147,2.4519,3354.7,3354.0,2.38521]
[1722223985525,4.83661,3354.7,3354.0,2.38521]
[1722223985712,2.38479,3354.6,3353.8,3.25768182]
[1722223986048,2.38489,3354.5,3353.8,3.25768182]
[1722223986616,2.38506,3354.3,3353.7,4.07920816]
[1722223987641,2.38489,3354.5,3353.7,4.07920816]
[1722223987843,3.0,3354.6,3353.8,2.2593]
[1722223988046,3.70037065,3355.1,3354.4,2.38485]
[1722223988227,3.0,3355.0,3354.4,2.38485]
[1722223988652,1.24847065,3355.1,3354.6,2.38474]
[1722223988948,2.38419,3355.5,3354.6,2.38474]
[1722223989129,2.38419,3355.5,3354.8,2.38464]
[1722223989130,3.63269999,3355.5,3354.8,2.38464]
[1722223989328,3.63269999,3355.5,3354.6,2.38474]
[1722223989329,1.24850999,3355.5,3354.9,2.38457]
[1722223989536,4.39717274,3355.5,3354.7,2.38471]
[1722223989721,2.01302274,3355.5,3354.7,2.38471]
[1722223989928,3.63274999,3355.4,3354.5,2.3848]
[1722223990341,3.0,3355.3,3354.6,2.38477]
[1722223991163,4.24850999,3355.3,3354.6,2.38477]
[1722223991470,3.0,3355.3,3354.6,2.38477]
[1722223991620,2.38451,3355.0,3354.1,6.46431816]
[1722223991822,4.68251,3355.0,3354.1,6.46431816]
[1722223992132,2.38458,3354.9,3354.1,6.46431816]
[1722223992341,2.38458,3354.9,3354.2,2.38506]
[1722223992661,2.38458,3354.9,3354.0,2.3852]
[1722223992662,2.298,3355.0,3354.3,2.38499]
[1722223992984,4.6825,3355.0,3354.3,2.38499]
[1722223993269,2.298,3355.0,3354.3,2.38499]
[1722223993573,2.38457,3354.9,3354.2,2.38506]
[1722223994475,2.38475,3354.7,3354.0,2.38515]
[1722223994831,3.63334713,3354.9,3354.1,2.38509]
[1722223995348,2.38464,3354.8,3354.1,2.38509]
[1722223995559,2.38475,3354.7,3353.9,2.38522]
[1722223997395,2.2978,3354.4,3353.8,4.07920816]
[1722223997662,2.2978,3354.4,3353.8,6.46455816]
[1722223998690,2.38506,3354.2,3353.6,2.38544]
[1722223998831,2.38515,3354.1,3353.5,4.07920816]
[1722223999231,4.65311968,3354.3,3353.5,6.46474816]
[1722223999433,2.38508,3354.2,3353.5,6.46474816]
[1722223999672,2.38514,3354.1,3353.5,4.07920816]
[1722224001067,5.02471548,3354.2,3353.5,4.07920816]
[1722224001407,2.38536,3353.8,3353.5,4.07920816]
[1722224001544,2.38536,3353.8,3353.1,2.38585]
[1722224002581,4.86861,3354.0,3353.2,2.38577]
[1722224002746,6.40128464,3354.0,3353.2,2.38577]
[1722224003503,6.40128464,3354.0,3353.3,2.3857]
[1722224003656,2.4834,3354.0,3353.4,2.3856]
[1722224004491,4.86862,3354.0,3353.0,4.07920816]
[1722224004785,4.86862,3354.0,3353.2,2.38573]
[1722224004955,2.38533,3353.9,3353.2,2.38573]
[1722224005155,1.15037209,3353.8,3353.2,2.38573]
[1722224005353,1.15037209,3353.8,3353.0,6.46512816]
[1722224005578,5.01014295,3353.8,3353.0,4.07920816]
[1722224005783,2.4997,3353.4,3353.0,4.07920816]
[1722224006057,2.38575,3353.3,3353.0,4.07920816]
[1722224006359,0.85207909,3353.3,3353.0,4.07920816]
[1722224006791,2.4997,3353.4,3353.0,4.07920816]
[1722224007490,2.4997,3353.4,3352.9,2.38594]
[1722224007650,3.0,3353.5,3352.9,2.38594]
[1722224007850,2.4997,3353.7,3353.1,2.38584]
[1722224008055,3.74947086,3354.1,3353.5,2.38555]
[1722224008383,3.0,3354.0,3353.4,2.38559]
[1722224008792,2.4997,3354.1,3353.5,2.38551]
[1722224008793,6.74947086,3354.1,3353.5,2.38551]
[1722224008994,6.74947086,3354.1,3353.3,2.38565]
[1722224009696,6.74947086,3354.1,3353.4,2.38563]
[1722224009893,6.74947086,3354.1,3353.1,2.38583]
[1722224009894,6.74947086,3354.1,3353.2,2.38577]
[1722224010085,2.38523,3354.0,3353.3,2.3857]
[1722224010274,4.24977086,3354.0,3353.3,2.3857]
[1722224010918,3.0,3354.0,3353.4,2.38563]
[1722224011225,4.24977086,3354.0,3353.4,2.38563]
[1722224011364,3.0,3354.0,3353.4,2.38563]
[1722224011560,2.4997,3354.1,3353.6,2.38544]
[1722224011760,5.4997,3354.1,3353.6,2.38544]
[1722224011961,5.4997,3354.1,3353.4,2.6721823]
[1722224012369,5.4997,3354.1,3353.1,0.479893]
[1722224012668,3.0,3354.1,3353.5,2.38556]
[1722224012864,2.38507,3354.2,3353.5,2.38556]
[1722224013070,2.38507,3354.2,3353.3,2.38568]
[1722224013071,2.38514,3354.1,3353.3,2.38565]
[1722224013284,5.38514,3354.1,3353.4,2.38562]
[1722224013485,3.0,3354.1,3353.5,2.38556]
[1722224013904,4.2500772,3354.2,3353.5,2.38556]
[1722224014530,4.2500772,3354.2,3353.6,2.38549]
[1722224015393,6.6351472,3354.2,3353.4,2.38558]
[1722224015703,1.2500772,3354.1,3353.4,2.38558]
[1722224016009,6.6351472,3354.2,3353.4,2.38558]
[1722224016224,6.6351472,3354.2,3353.1,4.07920816]
[1722224016225,2.38578,3353.2,3353.1,4.07920816]
[1722224016525,2.3988,3353.4,3353.1,4.07920816]
[1722224016526,2.38572,3353.3,3353.1,4.07920816]
[1722224016708,1.02076486,3353.3,3353.1,4.07920816]
[1722224017038,1.2500772,3353.7,3353.2,2.38575]
[1722224017246,3.0,3353.8,3353.1,4.07920816]
[1722224017247,4.2500772,3353.8,3353.1,4.07920816]
[1722224017384,5.60374014,3353.8,3353.1,4.07920816]
[1722224018121,1.2500772,3353.7,3353.1,4.07920816]
[1722224018284,2.38557,3353.5,3353.1,4.07920816]
[1722224018724,3.6356472,3353.5,3353.1,4.07920816]
[1722224018928,2.38557,3353.5,3353.1,4.07920816]
[1722224019382,3.6356472,3353.5,3352.8,2.38606]
[1722224019523,2.38557,3353.5,3352.8,2.38606]
[1722224019968,3.42304401,3353.5,3352.8,2.38606]
[1722224020202,1.2500772,3353.0,3352.2,4.07920816]
[1722224020324,2.38619,3352.7,3352.2,4.07920816]
[1722224020532,2.38614,3352.7,3352.0,2.38662]
[1722224021043,2.38614,3352.7,3351.9,12.44]
[1722224021243,2.38614,3352.7,3351.9,14.82668]
[1722224022087,4.71172,3352.6,3351.9,12.44]
[1722224022242,2.3255,3352.6,3352.0,2.38662]
[1722224022464,4.70223,3353.0,3352.1,2.38651]
[1722224022692,2.936,3352.9,3352.1,2.38651]
[1722224022843,2.936,3352.9,3351.9,16.10542821]
[1722224022844,2.38607,3352.8,3351.9,16.10542821]
[1722224023196,3.38569349,3352.8,3351.9,16.10542821]
[1722224023494,2.38614,3352.7,3351.9,16.10542821]
[1722224024248,2.38621,3352.6,3351.9,14.82669]
[1722224024547,2.38632,3352.5,3351.9,12.44]
[1722224024964,2.38641,3352.4,3351.9,12.44]
[1722224025166,2.61,3352.7,3351.5,4.07920816]
[1722224025167,2.38645,3352.3,3351.5,4.07920816]
[1722224025390,2.552745,3352.2,3351.5,4.07920816]
[1722224025589,2.38676,3351.9,3351.5,4.07920816]
[1722224026137,2.38671,3351.9,3351.5,4.07920816]
[1722224026461,2.552745,3352.2,3351.5,6.46617816]
[1722224026807,2.38628,3352.5,3351.5,4.07920816]
[1722224027104,2.38628,3352.5,3351.7,2.38684]
[1722224027105,2.93628,3352.5,3351.7,2.38684]
[1722224027390,2.93628,3352.5,3351.6,2.38686]
[1722224027391,5.38635,3352.4,3351.6,2.38686]
[1722224027612,3.0,3352.4,3351.8,2.38677]
[1722224027751,3.55,3352.5,3351.8,2.38677]
[1722224027944,3.55,3352.5,3351.6,2.38691]
[1722224028145,2.38635,3352.4,3351.6,2.38691]
[1722224028397,2.38642,3352.3,3351.6,2.38691]
[1722224028547,3.0,3352.3,3351.7,2.38684]
[1722224028949,2.38642,3352.3,3351.5,6.46618816]
[1722224029151,2.38649,3352.2,3351.5,6.46618816]
[1722224029683,0.55,3352.1,3351.5,4.07920816]
[1722224030073,2.38663,3352.0,3351.5,4.07920816]
[1722224030320,2.3867,3351.9,3351.5,4.07920816]
[1722224030496,2.2554,3351.8,3351.5,4.07920816]
[1722224031109,2.9369,3351.7,3350.9,2.38739]
[1722224031320,2.9369,3351.7,3350.9,3.27281082]
[1722224031842,0.55,3351.7,3351.0,2.38731]
[1722224031977,7.25218,3351.8,3350.9,3.27281082]
[1722224031978,2.61,3351.8,3350.9,0.88542082]
[1722224032320,1.2018723,3352.3,3350.7,4.07920816]
[1722224032321,2.3867,3351.9,3351.2,2.38715]
[1722224032674,3.0,3352.0,3351.3,2.38713]
[1722224032875,0.55,3351.9,3351.3,2.38713]
[1722224033073,0.55,3351.9,3351.2,2.38719]
[1722224033373,2.93671,3351.9,3351.2,2.38719]
[1722224035237,2.93671,3351.9,3351.3,2.38713]
[1722224035532,2.38685,3351.7,3351.0,2.38733]
[1722224035680,4.255577,3351.9,3351.1,2.38726]
[1722224035881,2.93671,3351.9,3351.1,2.38726]
[1722224036082,2.93671,3351.9,3351.2,2.38718]
[1722224036981,2.38678,3351.8,3351.1,2.38727]
[1722224037830,0.55,3351.9,3351.2,2.38719]
[1722224038028,0.55,3351.9,3351.3,2.38712]
[1722224038247,3.0,3352.0,3351.5,2.38693]
[1722224038422,3.0,3352.0,3351.6,2.38691]
[1722224038622,3.0,3352.0,3351.4,2.38701]
[1722224038894,3.0,3352.0,3350.8,2.38744]
[1722224038895,2.61,3351.8,3350.8,2.38744]
[1722224039153,2.38692,3351.6,3350.7,6.46673816]
[1722224039437,2.387,3351.5,3350.7,6.46673816]
[1722224039598,2.387,3351.5,3350.7,8.35741198]
[1722224039800,2.3905,3351.4,3350.7,8.35741198]
[1722224040099,0.55,3351.3,3350.7,4.07920816]
[1722224040640,2.3872,3351.2,3350.7,4.07920816]
[1722224041160,2.93732,3351.1,3350.7,4.07920816]
[1722224041303,2.93714,3351.3,3350.3,6.46703816]
[1722224041304,2.38736,3351.0,3350.3,6.46703816]
[1722224041638,2.93715,3351.3,3350.3,4.96470498]
[1722224041839,2.93715,3351.3,3350.3,7.35249498]
[1722224041840,2.38727,3351.1,3350.3,7.35249498]
[1722224042151,2.38735,3351.0,3350.3,4.96470498]
[1722224042359,2.38735,3351.0,3350.3,7.35253498]
[1722224042815,2.38735,3351.0,3350.4,2.38776]
[1722224043394,0.55,3351.3,3350.6,2.38758]
[1722224043940,0.55,3351.3,3350.5,2.3877]
[1722224043941,2.38724,3351.2,3350.5,2.3877]
[1722224044103,0.55,3351.1,3350.5,2.3877]
[1722224045259,2.61,3351.0,3350.3,6.46700816]
[1722224045415,2.38741,3350.9,3350.3,6.46704816]
[1722224045750,2.38741,3350.9,3350.3,4.07920816]
[1722224046056,2.38741,3350.9,3350.2,2.38791]
[1722224046545,2.61,3351.0,3350.2,2.38791]
[1722224046865,6.969784,3351.1,3350.2,2.38791]
[1722224046866,2.3905,3351.4,3350.3,2.3131]
[1722224047065,2.2622,3351.8,3350.5,2.38769]
[1722224047366,1.2444807,3352.7,3351.8,2.3867]
[1722224047367,2.2622,3352.4,3351.8,2.3867]
[1722224047653,2.38587,3353.1,3352.2,2.38644]
[1722224047831,4.8722,3353.2,3352.0,2.38657]
[1722224047832,2.38593,3353.0,3352.0,2.38657]
[1722224048001,4.8722,3353.2,3351.8,2.38675]
[1722224048002,2.38614,3352.7,3351.8,2.38675]
[1722224048202,2.38628,3352.5,3351.8,2.38675]
[1722224048636,2.624754,3352.7,3351.9,2.38669]
[1722224048997,2.38586,3353.1,3352.0,0.05966288]
[1722224049203,2.2622,3353.2,3352.7,2.38612]
[1722224049463,2.2622,3353.2,3352.5,2.38623]
[1722224049807,2.2622,3353.2,3352.6,2.3862]
[1722224050081,2.61,3353.6,3352.9,2.38599]
[1722224050343,2.61,3353.6,3353.0,2.38586]
[1722224050498,2.61,3353.6,3352.9,2.38599]
[1722224051040,2.61,3353.6,3353.0,2.38591]
[1722224051224,2.61,3353.6,3352.8,2.38606]
[1722224051432,0.49385,3353.5,3352.8,2.38606]
[1722224051744,1.24369428,3354.5,3354.1,4.84614]
[1722224051984,0.375,3354.6,3354.5,7.15455]
[1722224052246,1.736425,3356.0,3355.1,2.38437]
[1722224052402,1.736425,3356.0,3355.6,2.38407]
[1722224052604,1.736425,3356.0,3355.9,2.38386]
[1722224052805,1.736425,3356.0,3355.9,11.29940808]
[1722224053055,1.736425,3356.0,3355.9,8.32747317]
[1722224053355,1.736425,3356.0,3355.9,18.61164079]
[1722224053658,0.63033372,3356.0,3355.9,18.91064079]
[1722224053802,0.63033372,3356.0,3355.9,21.15010487]
[1722224054002,0.63033372,3356.0,3355.9,16.37103897]
[1722224054433,2.3285,3358.0,3357.5,2.3827]
[1722224054633,2.3285,3358.0,3356.3,2.38356]
[1722224054634,2.3285,3358.0,3356.8,2.3832]
[1722224054936,2.3285,3358.0,3356.8,2.38318]
[1722224055137,0.23285,3357.9,3357.0,2.38307]
[1722224055441,0.23285,3357.9,3355.9,2.23946408]
[1722224055442,3.484,3357.3,3355.9,2.38379]
[1722224055649,2.38324,3356.8,3355.7,2.384]
[1722224055805,2.2732,3357.2,3355.5,2.79]
[1722224056143,1.015612,3357.1,3356.0,2.38377]
[1722224056305,1.015612,3357.1,3355.6,0.279]
[1722224056506,0.465612,3357.1,3356.4,2.3835]
[1722224056706,4.88851,3357.9,3355.8,3.484]
[1722224056905,2.38259,3357.7,3356.8,2.38316]
[1722224057512,2.38259,3357.7,3356.1,2.3837]
[1722224057513,2.38259,3357.7,3356.6,2.38332]
[1722224058375,2.3831,3357.0,3356.0,2.38372]
[1722224058507,2.3831,3357.0,3355.6,0.279]
[1722224058508,2.38323,3356.8,3355.9,2.38385]
[1722224058712,2.848289,3357.6,3355.6,2.38406]
[1722224058713,2.2732,3357.5,3355.6,2.38406]
[1722224058969,2.38339,3356.6,3355.6,2.38406]
[1722224059255,2.38293,3357.3,3355.6,2.38406]
[1722224059256,0.55,3356.5,3355.6,2.38406]
[1722224059616,2.38357,3356.3,3355.3,2.38425]
[1722224059937,0.476693,3356.3,3355.3,2.38425]
[1722224060117,0.55,3356.7,3354.8,3.484]
[1722224060118,0.55,3356.7,3355.7,2.38397]
[1722224060322,0.55,3356.7,3355.9,2.38385]
[1722224060519,2.38309,3357.0,3356.1,2.38367]
[1722224060725,0.55,3356.8,3356.1,2.38367]
[1722224060915,0.843309,3356.8,3355.9,2.38384]
[1722224061543,0.843309,3356.8,3356.0,2.38378]
[1722224061746,0.843309,3356.8,3356.1,4.76738]
[1722224061946,0.843309,3356.8,3355.9,2.38386]
[1722224062108,0.843309,3356.8,3355.7,2.384]
[1722224062313,0.3226459,3356.7,3355.7,2.384]
[1722224062512,0.3226459,3356.7,3355.5,2.38408]
[1722224062513,2.38344,3356.5,3355.5,2.38408]
[1722224062749,0.55,3356.6,3355.8,2.38392]
[1722224064024,0.55,3356.6,3355.9,2.38385]
[1722224064413,1.11391059,3356.6,3355.9,2.38385]
[1722224064916,3.49728059,3356.6,3355.7,2.38397]
[1722224066225,3.49728059,3356.6,3356.0,2.38373]
[1722224066226,0.55,3356.6,3356.0,2.38373]
[1722224066439,2.383,3357.2,3355.7,2.38398]
[1722224066638,2.38299,3357.2,3356.2,2.38364]
[1722224066816,0.79722189,3357.2,3356.2,2.38364]
[1722224067018,2.38301,3357.1,3356.3,2.38355]
[1722224067223,0.79722189,3357.2,3356.1,2.38366]
[1722224067459,2.38294,3357.2,3356.1,2.38366]
[1722224067820,2.38323,3356.8,3356.0,2.38377]
[1722224068185,6.484,3357.8,3355.3,3.0]
[1722224068186,0.55,3356.7,3355.3,3.0]
[1722224068462,2.38364,3356.2,3354.8,2.4888]
[1722224068631,2.38387,3355.9,3354.9,2.38457]
[1722224068882,2.38387,3355.9,3355.1,2.38442]
[1722224069046,2.38341,3356.6,3354.7,5.1747]
[1722224069278,3.484,3356.8,3354.7,2.79]
[1722224069279,2.38406,3355.7,3354.7,2.79]
[1722224069418,2.9955,3355.8,3354.8,2.38463]
[1722224069419,2.3841,3355.6,3354.8,2.38463]
[1722224069614,2.9955,3355.8,3354.9,2.38454]
[1722224069861,2.9955,3355.8,3354.8,2.861578]
[1722224070063,2.38408,3355.6,3354.9,2.38455]
[1722224070270,2.38416,3355.5,3354.4,2.38492]
[1722224070415,2.38416,3355.5,3354.4,2.9103804]
[1722224070416,2.38437,3355.2,3354.4,2.9103804]
[1722224070620,2.38437,3355.2,3353.3,3.484]
[1722224070621,0.55,3355.1,3354.3,2.38497]
[1722224070818,2.93448,3355.1,3354.3,2.38497]
[1722224071054,0.55,3355.1,3354.4,2.38491]
[1722224071222,2.93444,3355.1,3354.2,2.38503]
[1722224071430,2.93444,3355.1,3354.3,2.861986]
[1722224071639,2.93444,3355.1,3354.2,2.38504]
[1722224071640,2.38452,3355.0,3354.2,2.38504]
[1722224071870,0.55,3355.1,3354.4,2.38489]
[1722224072023,2.3843,3355.3,3353.8,2.3853]
[1722224072219,2.3843,3355.3,3354.4,2.38487]
[1722224072424,0.55,3355.4,3354.6,2.38472]
[1722224072668,2.93422,3355.4,3354.6,2.38472]
[1722224073234,2.93422,3355.4,3354.7,2.3847]
[1722224074437,2.93422,3355.4,3354.1,0.05961555]
[1722224074438,0.55,3355.4,3354.1,0.05961555]
[1722224074624,2.384,3355.7,3355.0,2.38449]
[1722224074825,2.4455,3355.8,3355.0,2.38449]
[1722224075024,2.38401,3355.7,3354.8,2.38463]
[1722224075256,2.38422,3355.4,3354.6,2.38478]
[1722224075459,0.476823,3355.4,3354.3,2.38497]
[1722224075658,2.38448,3355.1,3354.3,2.38497]
[1722224075956,2.38429,3355.3,3354.3,2.38497]
[1722224076335,2.38429,3355.3,3354.6,2.38476]
[1722224076537,2.38435,3355.2,3354.4,2.38487]
[1722224076861,2.38435,3355.2,3354.5,2.38482]
[1722224077628,2.93423,3355.4,3354.4,0.51524426]
[1722224077857,2.38433,3355.3,3354.5,2.38484]
[1722224078041,2.38435,3355.2,3354.5,2.38484]
[1722224078370,2.38435,3355.2,3354.4,0.51524426]
[1722224078371,2.38448,3355.1,3354.4,0.51524426]
[1722224078561,2.38443,3355.1,3354.4,2.90013426]
[1722224078927,2.3843,3355.3,3354.4,2.38487]
[1722224079152,2.38436,3355.2,3354.4,2.38486]
[1722224079554,2.93425,3355.4,3354.6,2.38478]
[1722224079753,2.38429,3355.3,3354.6,2.861757]
[1722224079935,0.55,3355.4,3354.4,2.3849]
[1722224079936,2.93421,3355.4,3354.4,2.3849]
[1722224080128,2.38448,3355.1,3354.4,2.3849]
[1722224082365,0.55,3355.4,3354.2,2.38506]
[1722224082366,2.3845,3355.0,3354.3,2.38498]
[1722224083066,2.38436,3355.2,3354.4,2.38492]
[1722224084043,2.38423,3355.4,3354.6,2.38471]
[1722224084367,2.93429,3355.3,3354.4,2.38492]
[1722224084565,2.3845,3355.0,3354.4,2.38492]
[1722224085595,0.293429,3355.2,3354.0,2.3852]
[1722224085596,2.38459,3354.9,3354.0,2.3852]
[1722224085873,2.38459,3354.9,3353.8,2.38533]
[1722224085874,2.38479,3354.6,3353.8,2.3853]
[1722224087437,2.38485,3354.5,3353.8,2.3853]
[1722224087639,2.38494,3354.4,3353.8,2.3853]
[1722224087854,2.385,3354.3,3353.6,2.79]
[1722224088035,2.385,3354.3,3353.2,3.0]
[1722224088036,2.38528,3354.0,3353.2,2.38576]
[1722224088246,2.38528,3354.0,3353.3,2.38566]
[1722224089059,2.359,3353.9,3353.3,2.38566]
[1722224089268,4.74428,3353.9,3353.3,2.38566]
[1722224089583,2.359,3353.9,3353.4,2.38558]
[1722224090080,2.359,3353.9,3353.3,2.38566]
[1722224090851,2.38535,3353.8,3353.1,2.38584]
[1722224091077,2.38535,3353.8,3353.0,2.38586]
[1722224091237,2.38535,3353.8,3353.1,2.38583]
[1722224092178,2.359,3353.9,3353.3,2.38568]
[1722224092378,2.359,3353.9,3353.4,2.3856]
[1722224092881,0.55,3354.2,3353.4,2.862742]
[1722224093178,6.484,3354.8,3352.5,2.3915]
[1722224093179,4.68036,3354.5,3353.7,2.38537]
[1722224093365,2.38505,3354.3,3353.6,2.38548]
[1722224093566,4.68036,3354.5,3353.7,2.38541]
[1722224093765,4.68036,3354.5,3353.3,2.38565]
[1722224093766,2.2955,3354.5,3353.3,2.38565]
[1722224093977,2.38473,3354.7,3354.0,2.38516]
[1722224094206,4.68004,3355.0,3354.2,2.38502]
[1722224094496,2.38465,3354.8,3353.9,2.38525]
[1722224094710,4.68004,3355.0,3354.3,2.38499]
[1722224095367,2.2955,3355.5,3353.6,0.05962143]
[1722224095567,4.67965,3355.5,3354.8,2.38464]
[1722224095889,4.67965,3355.5,3353.6,0.57130807]
[1722224095890,2.2955,3355.5,3354.9,2.3845]
[1722224096293,2.2955,3355.5,3355.0,2.38448]
[1722224097506,2.2955,3355.5,3353.0,0.61172155]
[1722224097507,2.38386,3355.9,3355.1,2.38442]
[1722224097814,2.38386,3355.9,3355.1,2.38438]